Cogmind - Beta 14 @@@ ROGUE MODE // 2024.08.10 @ 14:49:24 Player: star Result: Destroyed self with Grenade Launcher Performance ------------- Evolutions (0) 0 Regions Visited (2) 400 Robots Destroyed (13) 65 Value Destroyed (364) 364 Prototype IDs (1) 20 Alien Tech Used (0) 0 Bonus (0) 0 TOTAL SCORE: 849 Bonus ------- None Cogmind --------- Core Integrity 0/250 Matter 182/300 Energy 100/100 System Corruption 0% Temperature Cool (0) Movement Walking (190) Ox1 Location -10/Mines Parts ------- > --- POWER (1) -------- (None) > --- PROPULSION (2) --- Aluminum Leg > --- UTILITY (2) ------ Medium Storage Unit > --- WEAPON (2) ------- Grenade Launcher > --- INVENTORY (10) --- Small Storage Unit Decoy Drone Bay (0/16) Grenade Launcher Peak State ------------ > --- POWER ------------ (None) > --- PROPULSION ------- Aluminum Leg > --- UTILITY ---------- Decoy Drone Bay > --- WEAPON ----------- Grenade Launcher > --- INVENTORY -------- Small Storage Unit Medium Storage Unit Grenade Launcher [Rating: 16] Favorites ----------- Power Light Ion Engine Engine Light Ion Engine Power Core Light Nuclear Core Propulsion Light Treads Treads Light Treads Leg Aluminum Leg Utility Small Storage Unit Device Decoy Drone Bay Storage Small Storage Unit Processor Transport Network Coupler Weapon Small Laser Energy Gun Small Laser Ballistic Gun Assault Rifle Launcher Grenade Launcher Build | -11 -10 -10 ------- Run | Yrd Mat Min Slots Evolved . | . . . Power . | . . . Propulsion . | . . . Utility . | . . . Weapon . | . . . Parts Attached 21 | 6 10 5 Power 3 | 1 2 . Engine 2 | 1 1 . Core 1 | . 1 . Reactor . | . . . Propulsion 6 | 2 4 . Treads 2 | 2 . . Leg 4 | . 4 . Wheel . | . . . Hover . | . . . Flight . | . . . Utility 5 | 1 2 2 Device 1 | . . 1 Storage 3 | 1 1 1 Processor 1 | . 1 . Hackware . | . . . Protection . | . . . Artifact . | . . . Weapon 7 | 2 2 3 Energy Gun 3 | 1 2 . Energy Cannon . | . . . Ballistic Gun 1 | 1 . . Ballistic Cannon . | . . . Launcher 3 | . . 3 Special Weapon . | . . . Impact Weapon . | . . . Slashing Weapon . | . . . Piercing Weapon . | . . . Special Melee Weapon . | . . . Unidentified Prototypes 1 | . . 1 Parts Lost 7 | . 6 1 Power 2 | . 2 . Propulsion 2 | . 2 . Utility . | . . . Weapon 3 | . 2 1 Highest Loss Streak 3 | . 3 1 To Critical Strikes . | . . . Average Slot Usage (%) 58 | . 66 44 Engine 5 | . 8 . Treads 11 | . 17 . Leg 7 | . 3 14 Device 2 | . . 7 Storage 11 | . 14 6 Processor 3 | . 3 2 Energy Gun 8 | . 13 . Ballistic Gun 2 | . 4 . Launcher 4 | . . 13 Peak Build Rating 16 | 6 9 16 Average Rating 6 | 5 4 10 On Entrance 3 | . 6 3 Naked Turns . | . . . Heaviest Build 17 | 12 17 17 Greatest Support 40 | 40 40 10 Greatest Overweight (x) 3 | . 3 1 Average Overweight (x) . | . . . Largest Inventory Capacity 10 | 8 10 10 Average Capacity 7 | 7 8 7 Most Carried 5 | . 4 5 Average Carried 1 | . 1 3 Final Capacity 10 | 8 10 10 Final Carried 4 | . 4 4 Class Distribution -------------------- 91% | Mutant 8% | Scavenger-Mutant Dominant Class ---------------- Mutant | -10/Materials Mutant | -10/Mines Resources | -11 -10 -10 ----------- Run | Yrd Mat Min Matter Collected 346 | 159 144 43 Remotely . | . . . Salvage Created 278 | . 233 45 Parts 22 | . 17 5 Haulers Intercepted 1 | . 1 . Recyclers Shooed 1 | . . 1 Parts Field Recycled . | . . . Retrieved Matter . | . . . Parts Self-Destructed . | . . . Prevented . | . . . Kills | -11 -10 -10 ------- Run | Yrd Mat Min Combat Hostiles Destroyed 12 | . 7 5 Melee 4 | . 4 . Guns 3 | . 3 . AOE 5 | . . 5 Classes Destroyed 3 | . 2 1 Hauler 1 | . 1 . Swarmer 3 | . . 3 Grunt 9 | . 7 2 Best Kill Streak 3 | . 2 3 Combat Bots Only 3 | . 2 3 Max Kills in Single Turn 2 | . 1 2 Gunslinging . | . . . Exploded 2 | . . 2 Melee 1 | . 1 . Uniques/NPCs Destroyed . | . . . Combat | -11 -10 -10 -------- Run | Yrd Mat Min Hostile Shots Fired 110 | . 94 16 Missed 30 | . 22 8 Damage Taken 1069 | . 841 228 Core 275 | . 178 97 Absorbed by Shields . | . . . Core Remaining (%) 100 | 100 . . Volleys Fired 27 | . 18 9 Largest 2 | . 2 1 Hottest 80 | . 80 30 Shots Fired 38 | . 29 9 Gun 29 | . 29 . Cannon . | . . . Launcher 9 | . . 9 Special . | . . . Kinetic 7 | . 7 . Thermal 13 | . 13 . Explosive 9 | . . 9 Electromagnetic 9 | . 9 . Robot Hit Streak 8 | . 5 8 Robot Miss Streak 3 | . 3 1 Penetration Max . | . . . Secondary Targets . | . . . Shots Hit Robots 26 | . 19 7 Core Hits 19 | . 12 7 Critical Kills . | . . . Critical Parts Destroyed . | . . . Critical Strikes . | . . . Melee Attacks . | . . . Impact . | . . . Slashing . | . . . Piercing . | . . . Sneak Attacks . | . . . Combat Hostiles . | . . . Follow-up Attacks . | . . . Damage Inflicted 642 | . 264 378 Guns 223 | . 223 . Cannons . | . . . Explosions 378 | . . 378 Melee . | . . . Ramming 41 | . 41 . Kinetic 84 | . 84 . Thermal 101 | . 101 . Explosive 378 | . . 378 Electromagnetic 38 | . 38 . Impact . | . . . Slashing . | . . . Piercing . | . . . Highest Corruption . | . . . Average Corruption . | . . . Corruption Purged . | . . . Corruption Blocked . | . . . Overload Shots . | . . . Overflow Damage . | . . . Projectiles . | . . . Explosions . | . . . Melee . | . . . Knockbacks . | . . . Impact . | . . . Kinetic . | . . . Secondary . | . . . Self-Inflicted Damage 147 | . 1 146 Shots 8 | . . 8 Rammed 24 | . 24 . Targets Rammed 28 | . 28 . Kicked 1 | . 1 . Crushed 3 | . 3 . Highest Temperature 36 | . 36 5 Average Temperature 9 | . 9 5 Received Heat Transfer 510 | . 474 36 Siege Activations . | . . . Robots Corrupted . | . . . Combat Hostiles . | . . . Parts Fried . | . . . Impact Corruptions . | . . . Robots Melted . | . . . Combat Hostiles . | . . . Parts Melted 1 | . 1 . Heat Transferred 225 | . 225 . Parts Sabotaged . | . . . Parts Stolen . | . . . Parts Stripped . | . . . Power Chain Reactions . | . . . Alert | -11 -10 -10 ------- Run | Yrd Mat Min Peak Influence 188 | . 188 152 Initial . | . . . Average 81 | . 80 113 Maximum Alert Level . | . . . Low Security (%) 100 | 100 100 100 Level 1 . | . . . Level 2 . | . . . Level 3 . | . . . Level 4 . | . . . Level 5 . | . . . High Security . | . . . Max Security . | . . . Squads Dispatched 2 | . 2 . Investigation 1 | . 1 . Extermination . | . . . Reinforcement 1 | . 1 . Assault . | . . . Garrison . | . . . Intercept . | . . . Searches Triggered . | . . . Construction Impeded . | . . . Haulers Reinforced . | . . . Active Scanning Responses . | . . . Cargo Convoy Interrupts . | . . . Stealth | -11 -10 -10 --------- Run | Yrd Mat Min Distress Signals . | . . . Communications Jammed . | . . . Distress Signals . | . . . Times Spotted 20 | . 13 7 Peak Tracking Total 5 | . 5 3 Tactical Retreats . | . . . Traps | -11 -10 -10 ------- Run | Yrd Mat Min Traps Triggered 3 | . 3 . Indirectly . | . . . Trap Hack Attempts . | . . . Triggered . | . . . Disarmed . | . . . Reprogrammed . | . . . Reused . | . . . Traps Extracted . | . . . Installed . | . . . Triggered . | . . . Machines | -11 -10 -10 ---------- Run | Yrd Mat Min Machines Disabled . | . . . Max in Single Turn . | . . . Machines Repaired . | . . . Machines Dismantled . | . . . Machines Sabotaged . | . . . Overloaded Fab Kills . | . . . Hacking | -11 -10 -10 --------- Run | Yrd Mat Min Machines Accessed 3 | . 2 1 Terminals 1 | . 1 . Fabricators . | . . . Repair Stations . | . . . Recycling Units 1 | . 1 . Scanalyzers . | . . . Garrison Access . | . . . Total Hacks 9 | . 8 1 Successful 7 | . 6 1 Failed 2 | . 2 . Catastrophic . | . . . Database Lockouts . | . . . Manual 5 | . 5 . Terminals 5 | . 5 . Fabricators . | . . . Repair Stations . | . . . Recycling Units 3 | . 3 . Scanalyzers . | . . . Garrison Access . | . . . Terminal Hacks 2 | . 1 1 Open Door 1 | . . 1 Hauler Manifests 1 | . 1 . Fabricator Hacks . | . . . Repair Station Hacks . | . . . Recycling Unit Hacks 1 | . 1 . Retrieve Components 1 | . 1 . Scanalyzer . | . . . Garrison Access Hacks . | . . . Unauthorized Hacks 4 | . 4 . Terminals 4 | . 4 . Assimilate 1 | . 1 . Botnet 1 | . 1 . Operators 1 | . 1 . Skim 1 | . 1 . Fabricators . | . . . Repair Stations . | . . . Recycling Units . | . . . Scanalyzers . | . . . Garrison Access . | . . . Data Cores Recovered . | . . . Used . | . . . Hacking Detections 2 | . 2 . Full Trace Events . | . . . Feedback Events . | . . . Feedback Blocked . | . . . Robot Schematics Acquired . | . . . Robots Built . | . . . Authchips . | . . . Time . | . . . Total Robot Build Rating . | . . . Part Schematics Acquired . | . . . Parts Built . | . . . Authchips . | . . . Time . | . . . Total Part Build Rating . | . . . Parts Repaired . | . . . Time . | . . . Parts Recycled . | . . . Recycled Matter . | . . . Retrieved Matter . | . . . Retrieved Components 10 | . 10 . Parts Scanalyzed . | . . . Part Schematics Acquired . | . . . Parts Damaged . | . . . Bothacking | -11 -10 -10 ------------ Run | Yrd Mat Min Used RIF Installer . | . . . Robots Hacked . | . . . Non-combat . | . . . Combat . | . . . Robot Hacks Applied . | . . . Relay Couplers Released . | . . . Fabnet Peak Effective % . | . . . Robots Rewired . | . . . Allies Hacked . | . . . Hacks Repelled . | . . . Allies | -11 -10 -10 -------- Run | Yrd Mat Min Total Allies . | . . . Largest Group . | . . . Highest-Rated Group . | . . . Highest-Rated Ally . | . . . Total Orders 1 | . . 1 EXPLORE 1 | . . 1 Ally Attacks . | . . . Total Damage . | . . . Kills . | . . . Allies Corrupted . | . . . Allies Melted . | . . . Intel | -11 -10 -10 ------- Run | Yrd Mat Min Robot Analysis Total . | . . . Derelict Logs Recovered 1 | . . 1 Drone Launches 16 | . . 16 Drone Recoveries . | . . . Exploration | -11 -10 -10 ------------- Run | Yrd Mat Min Turns Passed 916 | 115 501 300 Spaces Moved 421 | 65 244 112 Core 49 | 2 47 . Treads 208 | 63 145 . Legs 164 | . 52 112 Wheels . | . . . Hover . | . . . Flight . | . . . Fastest Speed 50 | 50 100 120 Average Speed 160 | 156 153 179 Slowest Speed 200 | 160 200 190 Overloaded Moves . | . . . Propulsion Burnouts . | . . . Robots Hopped . | . . . Cave-ins Triggered . | . . . Exploration Rate (%) 39 | 6 36 75 Regions Visited 2 Branch Regions 1 Pre-discovered Areas . | . . . Known Exits Taken . | . . . Unknown Exits Taken 2 | 1 1 . Scrap Searched . | . . . Spaces Dug . | . . . Terrain Destroyed 55 | . . 55 Melee . | . . . Projectile . | . . . AOE 55 | . . 55 Terrain Rammed . | . . . Walls Destroyed . | . . . Machines Disabled . | . . . Actions | -11 -10 -10 --------- Run | Yrd Mat Min Total 600 | 75 320 205 Wait 97 | 5 17 75 Move 419 | 64 243 112 Hop . | . . . Pick Up 4 | . 4 . Fast Attach 16 | 6 9 1 Attach 4 | . . 4 Detach 4 | . . 4 Swap 1 | . 1 . Drop . | . . . Fire 27 | . 18 9 Melee . | . . . Ram 1 | . 1 . Kick 1 | . 1 . Crush 26 | . 26 . Escape Stasis . | . . . Rewire . | . . . Trap . | . . . Miscellaneous . | . . . Route ------- -11/Scrapyard -10/Materials (discovered 3 exits: [*Mat x2] / *Min) -10/Mines (discovered 2 exits: [*Mat x2]) History --------- Turn | Location | Event 29 | -11/Scrapyard | Discovered new exit (range 14) 116 | -11/Scrapyard | Entered Materials 166 | -10/Materials | Discovered new exit (range 14) 303 | -10/Materials | Build established: Mutant 368 | -10/Materials | Discovered new exit (range 16) 422 | -10/Materials | Core integrity fell below 50% 464 | -10/Materials | Lost 3 parts (1p2n) 610 | -10/Materials | Discovered new exit (range 6) 617 | -10/Materials | Entered Mines 625 | -10/Mines | Core integrity fell below 20% 646 | -10/Mines | Learned 4 Materials zone layouts 666 | -10/Mines | Found the Drone Emporium 676 | -10/Mines | Found Prototype Device 676 | -10/Mines | Identified Decoy Drone Bay 694 | -10/Mines | Discovered new exit (range 21) 711 | -10/Mines | Discovered new exit (range 24) 745 | -10/Mines | Lost 3 allies 917 | -10/Mines | Destroyed self with Grenade Launcher Last Messages --------------- 00708_ Decoy Drone self-destructs. 00708_ Decoy Drone destroyed. 00708_ U-05 Engineer builds a Wall. 00709_ Decoy Drone self-destructs. 00709_ Decoy Drone destroyed. 00710_ K-01 Serf collects debris. 00711_ The unstable cave ceiling collapses. 00711_ EXIT=FOUND 00712_ Decoy Drone self-destructs. 00712_ Decoy Drone destroyed. 00714_ Decoy Drone self-destructs. 00714_ Decoy Drone destroyed. 00727_ U-05 Engineer lays Concrete. 00732_ U-05 Engineer builds a Wall. 00735_ U-05 Engineer lays Concrete. 00740_ U-05 Engineer builds a Wall. 00742_ U-05 Engineer lays Concrete. 00747_ U-05 Engineer builds a Wall. 00823_ K-01 Serf collects debris. 00839_ Acquired 7 matter. Map ----- +----------------------------------------------------+ | | | | | | | | | | | | | | | | | | | | | | | | | | | | | | | | | | | | | ??????????????????????????????????????????????? | | ??????????###?????????????????????????????????? | | ?????????## ###??????????????????????????????? | | ?????????# ##?????????????????????????????? | | ?????????# ##????????????????????????????? | | ??????????# ##???????????????????????????? | | ??????????# # ###########???????????????? | | ??????????# %%g @ #???????????????? | | ??????????# g ############ #???????????????? | | ??????????# % #??????????# #???????????????? | | ??????????# %##??????????# ###?????????????? | | ?????????## #???????????# #?????????????? | | ????????## ##???????????### #?????????????? | | ??????### ##??????????????# #??????###???#? | | ?????## ##???????????????# #??????# ? | | ?????# ##????????????????# ###????# """ ? | | ?????# ##????????????????# #????# """ ? | | ?????# #????????????????### #????? """ ? | | ?????## #??????????????????# #?????? ? | | ??????## #??????????????????# #???????# #? | | ???????# ##??????????????????# #???????# ## | | ???????# ###???????????????????# #???????# | | ???????# #?????????????????????# #???????# | | ????#### #?????????????????????# #???????## ## | | ????# ##########????????????# #????????# #? | | ????# ## #????????????# #????????# #? | | ????# ## ############## ########## #? | | ????# ########### %%% #? | | ????# #???????## ####### ###### ############? | | ????#%#??????## #?????# #????# #???????????? | | ????# #??????# #?????# #????# ####????????? | | ???## #??????# ##?????# #???## ##???????? | +----------------------------------------------------+ Best States ------------- Heat Dissipation 25 Energy Generation 14 Energy Capacity 250 Matter Stores 300 Matter Capacity 300 Sight Range 16 Terrain Scan Density 10 Evasion (%) 55 Recoil Reduction 2 Item Schematics ----------------- None Robot Schematics ------------------ None Fabricated ------------ Nothing Alien Tech Used ----------------- None Achievements -------------- Fist Fight Challenges ------------ None Game ------ Seed ReactiveHardenedPlating Manual? 0 Play Time 00:11:53 Cumulative 46.5 hours Start 2024.08.10 @ 14:28:49 End 2024.08.10 @ 14:49:24 Sessions 1 Manual Loads 0 Difficulty Rogue Special Mode None Game No. 84 Rogue 84 Adventurer 0 Explorer 0 Win Type - Total 0 Types 0/0/0/0/0/0/0/0/0 Lore% 20 Gallery% 41 Achievement% 32 Wizard Run 0 Options --------- Layout 0 ASCII 0 Keyboard 0 Movement Numpad Keybinds 0 Fullscreen 1 Font 18/SmallcapsGlow Map View 76x50 Zoom Use 0% Tactical HUD 1 Map Filters NONE Filters NONE Steam 1 RUN: bde44bfd-575d-4b14-83ab-f026a774375b